bitfinex/quotes_SOLUSD_20241225
["timestamp","ask_amount","ask_price","bid_price","bid_amount"]
[1735132289169,23.776884,196.71,196.65,20.0]
[1735132289567,24.73015246,196.71,196.65,20.0]
[1735132291962,1.5545,196.69,196.62,12.7144]
[1735132292168,0.95342675,196.68,196.64,20.0]
[1735132292466,2.50791994,196.69,196.64,20.0]
[1735132293858,1.5545,196.69,196.64,20.0]
[1735132294066,1.5545,196.69,196.65,0.12549]
[1735132294251,6.0398,196.72,196.65,10.06422292]
[1735132295576,6.0398,196.72,196.67,0.12549]
[1735132295748,6.0398,196.72,196.66,0.12549]
[1735132298490,2.51631679,196.74,196.66,0.12549]
[1735132304171,1.5631,196.74,196.66,0.12549]
[1735132304369,2.51623358,196.74,196.66,0.12549]
[1735132304776,1.5631,196.74,196.66,0.12549]
[1735132305685,1.5631,196.74,196.68,0.12549]
[1735132305884,6.4329,196.77,196.73,20.0]
[1735132306078,6.4329,196.77,196.72,0.12549]
[1735132310868,6.4329,196.77,196.72,30.06422292]
[1735132312571,1.5631,196.79,196.72,30.06422292]
[1735132312972,1.5631,196.79,196.75,0.12549]
[1735132317289,2.51593723,196.79,196.74,20.0]
[1735132317471,1.5631,196.79,196.74,20.0]
[1735132319295,1.5631,196.79,196.73,0.12549]
[1735132319506,9.93873292,196.76,196.68,0.76230753]
[1735132319675,16.14173292,196.76,196.68,9.93873292]
[1735132319875,16.14173292,196.76,196.67,13.47353777]
[1735132320093,16.14173292,196.76,196.68,9.93873292]
[1735132320393,6.203,196.76,196.7,9.93873292]
[1735132320583,6.203,196.76,196.71,0.12549]
[1735132320891,1.5631,196.79,196.73,20.0]
[1735132321096,2.51594713,196.79,196.73,20.0]
[1735132321496,2.51598339,196.79,196.73,20.0]
[1735132322194,9.93873292,196.76,196.69,20.0]
[1735132322374,9.93873292,196.76,196.68,10.7010498]
[1735132322694,1.5576,196.73,196.64,0.76245791]
[1735132322885,10.89197261,196.72,196.64,9.93873292]
[1735132323275,10.89197261,196.72,196.65,0.12549]
[1735132323584,10.89197261,196.72,196.64,9.93873292]
[1735132324198,10.89197261,196.72,196.67,20.0]
[1735132324386,10.89197261,196.72,196.63,0.76261075]
[1735132324387,23.776884,196.71,196.63,0.76261075]
[1735132324590,10.89209618,196.7,196.62,9.93873292]
[1735132325374,10.89209618,196.7,196.63,0.12549]
[1735132325681,10.89209618,196.7,196.62,9.93873292]
[1735132325994,23.776884,196.69,196.63,20.0]
[1735132326193,23.776884,196.69,196.62,9.93873292]
[1735132326399,23.776884,196.69,196.61,0.76264886]
[1735132326699,1.6349,196.66,196.59,9.93873292]
[1735132327378,1.6349,196.66,196.6,0.12549]
[1735132327685,1.6349,196.66,196.62,0.12549]
[1735132329592,1.6349,196.71,196.65,0.12549]
[1735132329800,1.6349,196.71,196.65,10.06422292]
[1735132334900,1.6349,196.71,196.65,0.12549]
[1735132334901,12.5268437,196.71,196.65,0.12549]
[1735132335276,23.776884,196.7,196.63,9.93873292]
[1735132335471,0.9533883,196.69,196.63,9.93873292]
[1735132336388,24.7302623,196.7,196.63,9.93873292]
[1735132337077,1.6349,196.71,196.64,0.12549]
[1735132337272,1.6349,196.71,196.65,9.93873292]
[1735132338496,1.6349,196.71,196.64,12.83879]
[1735132338687,0.95329962,196.7,196.63,9.93873292]
[1735132338887,9.93873292,196.69,196.64,20.0]
[1735132339089,0.9534253,196.68,196.64,20.0]
[1735132339531,9.93873292,196.69,196.64,20.0]
[1735132339686,0.95341878,196.68,196.64,20.0]
[1735132340105,9.93873292,196.69,196.64,20.0]
[1735132341409,0.95341958,196.68,196.64,20.0]
[1735132341708,9.93873292,196.69,196.64,20.0]
[1735132341904,0.95341058,196.68,196.64,20.0]
[1735132342406,9.93873292,196.67,196.59,9.93873292]
[1735132342586,0.95353975,196.66,196.59,9.93873292]
[1735132342779,9.93873292,196.67,196.6,0.12549]
[1735132343199,0.95351454,196.66,196.6,0.12549]
[1735132343398,9.93873292,196.67,196.6,0.12549]
[1735132344712,0.95351497,196.66,196.6,0.12549]
[1735132345606,0.95351497,196.66,196.58,12.7174]
[1735132345787,0.95351497,196.66,196.55,0.76282825]
[1735132345788,17.96123292,196.65,196.55,0.76282825]
[1735132345988,24.73055077,196.64,196.56,9.93873292]
[1735132346188,23.776884,196.62,196.54,22.65833292]
[1735132346412,0.95380993,196.61,196.54,22.65833292]
[1735132346707,0.95380993,196.61,196.55,0.12549]
[1735132348215,0.95380993,196.61,196.57,20.0]
[1735132349311,9.93873292,196.58,196.5,13.48504792]
[1735132349608,0.95400977,196.57,196.5,12.722]
[1735132349916,0.95400977,196.57,196.51,0.12549]
[1735132350115,0.95400977,196.57,196.5,12.722]
[1735132352200,8.97646966,196.6,196.53,9.93873292]
[1735132352404,8.0225,196.6,196.53,9.93873292]
[1735132354695,0.95384785,196.59,196.53,9.93873292]
[1735132355122,8.0225,196.6,196.53,9.93873292]
[1735132355123,8.9763662,196.6,196.53,9.93873292]
[1735132356120,33.71561692,196.59,196.52,20.0]
[1735132356321,0.95396586,196.58,196.52,20.0]
[1735132356791,0.95396586,196.58,196.54,20.0]
[1735132356996,8.0225,196.6,196.54,20.0]
[1735132357495,23.776884,196.59,196.54,20.0]
[1735132357698,24.73065756,196.59,196.52,29.93873292]
[1735132358801,9.93873292,196.58,196.53,20.0]
[1735132359118,0.95399542,196.57,196.53,20.0]
[1735132362722,0.95399542,196.57,196.5,9.93873292]
[1735132363023,33.71561692,196.56,196.49,12.7231]
[1735132363206,0.95409746,196.55,196.49,12.7231]
[1735132364695,8.0225,196.6,196.51,12.7219]
[1735132364923,10.89264337,196.59,196.52,10.06422292]
[1735132365125,9.93873292,196.59,196.52,10.06422292]
[1735132365310,23.776884,196.59,196.52,10.06422292]
[1735132366126,8.0225,196.6,196.54,0.12549]
[1735132366322,8.0225,196.6,196.54,10.06422292]
[1735132368536,8.0225,196.6,196.57,20.0]
[1735132370515,9.93873292,196.59,196.54,0.12549]
[1735132370717,9.93873292,196.59,196.56,20.0]
[1735132371234,9.93873292,196.59,196.54,0.12549]
[1735132371806,9.93873292,196.59,196.56,20.0]
[1735132373024,0.95384473,196.58,196.53,12.7207]
[1735132373213,0.95384473,196.58,196.54,20.0]
[1735132373528,23.776884,196.56,196.48,0.76299546]
[1735132373827,10.89283566,196.55,196.48,9.93873292]
[1735132374124,23.776884,196.54,196.47,12.7244]
[1735132374430,0.95420554,196.53,196.47,12.7244]
[1735132374600,8.0225,196.6,196.48,9.93873292]
[1735132374804,9.93873292,196.57,196.48,9.93873292]
[1735132375023,0.95403093,196.56,196.49,0.12549]
[1735132375228,0.95403093,196.56,196.5,9.93873292]
[1735132381024,33.71561692,196.55,196.47,12.7244]
[1735132381333,23.776884,196.52,196.45,9.93873292]
[1735132381524,0.95429442,196.51,196.45,9.93873292]
[1735132382232,24.73117598,196.52,196.45,9.93873292]
[1735132383823,24.73117598,196.52,196.48,20.0]
[1735132386441,9.93873292,196.51,196.44,12.7264]
[1735132386631,0.95436227,196.5,196.44,12.7264]
[1735132387151,0.95437489,196.51,196.44,12.7264]
[1735132387310,23.776884,196.5,196.44,12.7264]
[1735132387515,0.95437261,196.49,196.44,12.7264]
[1735132392454,23.776884,196.53,196.45,9.93873292]
[1735132392650,0.95421407,196.52,196.45,9.93873292]
[1735132393324,0.95421407,196.52,196.47,9.93873292]
[1735132393530,0.95420664,196.53,196.47,9.93873292]
[1735132394046,23.776884,196.52,196.47,9.93873292]
[1735132395249,7.8005,196.54,196.5,20.0]
[1735132398750,0.95410207,196.53,196.43,12.7271]
[1735132399042,0.95410207,196.53,196.46,29.93873292]
[1735132399948,0.95410207,196.53,196.48,20.0]
[1735132401953,10.89283499,196.53,196.48,20.0]
[1735132402126,23.776884,196.52,196.48,20.0]
[1735132402325,0.95430372,196.51,196.48,20.0]
[1735132403226,10.89303664,196.51,196.48,20.0]
[1735132404150,10.89303664,196.51,196.45,12.7254]
[1735132406151,0.95430372,196.51,196.45,12.7254]
[1735132406329,24.73110896,196.52,196.46,9.93873292]
[1735132412542,24.73110896,196.52,196.45,12.7254]
[1735132417539,23.776884,196.5,196.44,9.93873292]
[1735132417749,0.95435452,196.49,196.42,22.66623292]
[1735132418745,0.95435653,196.5,196.42,22.66623292]
[1735132419149,0.95435653,196.5,196.44,9.93873292]
[1735132425970,9.93873292,196.52,196.44,9.93873292]
[1735132426155,0.95433175,196.51,196.44,9.93873292]
[1735132426864,0.95433175,196.51,196.46,9.93873292]
[1735132427063,23.776884,196.52,196.46,9.93873292]
[1735132427256,0.95425818,196.51,196.46,9.93873292]
[1735132428168,23.776884,196.5,196.44,22.66473292]
[1735132428368,0.95425818,196.51,196.44,22.66473292]
[1735132428369,1.5809,196.48,196.44,9.93873292]
[1735132428567,24.7312447,196.47,196.39,7.92284843]
[1735132428752,24.7312447,196.47,196.41,9.93873292]
[1735132430170,24.7312447,196.47,196.41,20.0]
[1735132430967,7.8485,196.48,196.44,9.93873292]
[1735132431269,8.1442,196.53,196.46,9.93873292]
[1735132431444,0.95421856,196.52,196.46,9.93873292]
[1735132431645,0.95421856,196.52,196.42,0.88911481]
[1735132431848,0.95421856,196.52,196.46,9.93873292]
[1735132432768,0.95421856,196.52,196.5,20.0]
[1735132433669,0.95421856,196.52,196.47,9.93873292]
[1735132434664,0.95421856,196.52,196.47,20.0]
[1735132434876,0.95421856,196.52,196.48,20.0]
[1735132435057,0.95421856,196.52,196.47,20.0]
[1735132435776,0.95421856,196.52,196.48,20.0]
[1735132437572,0.95421856,196.52,196.46,9.93873292]
[1735132439647,23.776884,196.51,196.46,9.93873292]
[1735132441260,0.95431476,196.52,196.46,9.93873292]
[1735132442470,0.95431476,196.52,196.47,20.0]
[1735132442672,0.95431476,196.52,196.46,9.93873292]
[1735132449359,0.95431476,196.52,196.44,12.7259]
[1735132449558,0.95431476,196.52,196.46,9.93873292]
[1735132450055,23.776884,196.51,196.46,9.93873292]
[1735132450258,0.95434628,196.5,196.46,9.93873292]
[1735132453587,0.95434628,196.5,196.4,39.24630049]
[1735132453773,0.95434628,196.5,196.44,9.93873292]
[1735132463188,23.776884,196.49,196.44,9.93873292]
[1735132463489,0.95437489,196.48,196.44,9.93873292]
[1735132463688,0.95437489,196.5,196.44,9.93873292]
[1735132464088,23.776884,196.49,196.44,9.93873292]
[1735132464279,0.95437489,196.48,196.44,9.93873292]
[1735132464480,0.95437489,196.5,196.44,9.93873292]
[1735132464679,23.776884,196.49,196.44,9.93873292]
[1735132464880,0.95437489,196.48,196.44,9.93873292]
[1735132465081,23.776884,196.49,196.44,9.93873292]
[1735132465276,23.776884,196.47,196.4,12.7284]
[1735132465483,7.48597489,196.46,196.41,9.93873292]
[1735132467166,23.776884,196.45,196.4,29.93873292]
[1735132467367,0.95437489,196.44,196.4,29.93873292]
[1735132469497,6.5316,196.46,196.4,29.93873292]
[1735132469498,6.5316,196.46,196.42,9.93873292]
[1735132469701,6.5316,196.46,196.44,9.93873292]
[1735132472916,1.6186,196.47,196.44,9.93873292]
[1735132473216,6.5316,196.51,196.46,9.93873292]
[1735132473689,6.5316,196.51,196.48,9.93873292]
[1735132473889,1.6186,196.52,196.5,9.93873292]
[1735132474086,8.1502,196.57,196.53,20.0]
[1735132474298,8.1502,196.57,196.54,9.93873292]
[1735132476783,8.1502,196.57,196.53,20.0]
[1735132477114,0.95395874,196.56,196.53,20.0]
[1735132478405,0.95400179,196.56,196.53,20.0]
[1735132478918,8.1502,196.57,196.53,20.0]
[1735132479114,23.776884,196.58,196.53,20.0]
[1735132479286,0.9539595,196.57,196.52,9.93873292]
[1735132481519,9.93873292,196.6,196.52,9.93873292]
[1735132481693,0.9539072,196.59,196.52,9.93873292]
[1735132489215,12.49085692,196.62,196.55,20.0]
[1735132489416,2.55204325,196.62,196.55,20.0]
[1735132490116,1.5982,196.62,196.55,20.0]
[1735132491904,0.95376228,196.61,196.55,20.0]
[1735132494326,2.5519627,196.62,196.57,20.0]
[1735132501232,2.5519627,196.62,196.59,20.0]
[1735132502025,9.93873292,196.6,196.5,12.7224]
[1735132502210,9.93873292,196.58,196.51,9.93873292]
[1735132502408,10.8927227,196.6,196.51,9.93873292]
[1735132502608,10.8927227,196.6,196.53,9.93873292]
[1735132507530,0.95398978,196.6,196.53,22.65933292]
[1735132507741,11.53693292,196.62,196.53,22.65933292]
[1735132507742,1.5982,196.62,196.55,9.93873292]
[1735132507943,2.55192229,196.62,196.55,9.93873292]
[1735132509137,12.49065521,196.62,196.55,9.93873292]
[1735132509311,2.55192229,196.62,196.55,9.93873292]
[1735132509515,12.49065521,196.62,196.55,9.93873292]
[1735132510731,2.55192229,196.62,196.56,0.12549]
[1735132510929,1.5982,196.62,196.6,20.0]
[1735132511151,6.1636,196.63,196.6,20.0]
[1735132511441,2.48538227,196.67,196.6,20.0]
[1735132511645,12.42411519,196.67,196.59,9.93873292]
[1735132512323,11.47053292,196.67,196.62,20.0]
[1735132513044,1.5318,196.67,196.61,9.93873292]
[1735132513609,1.5318,196.67,196.62,0.12549]
[1735132513817,1.5318,196.67,196.63,9.93873292]
[1735132514947,1.5318,196.67,196.62,0.12549]
[1735132515534,1.5318,196.67,196.61,10.70139803]
[1735132515742,11.47053292,196.67,196.6,32.7158]
[1735132515943,0.95350542,196.66,196.62,20.0]
[1735132516135,23.776884,196.65,196.62,20.0]
[1735132516343,23.776884,196.65,196.57,9.93873292]
[1735132516344,0.95361655,196.64,196.57,9.93873292]
[1735132516725,0.95361655,196.64,196.55,0.12549]
[1735132516923,0.95361655,196.64,196.56,9.93873292]
[1735132517556,1.5318,196.67,196.58,9.93873292]
[1735132517766,11.47053292,196.67,196.61,20.0]
[1735132518743,0.95345874,196.66,196.61,20.0]
[1735132519624,0.95345874,196.66,196.59,20.0]
[1735132519926,9.93873292,196.65,196.59,20.0]
[1735132520127,0.95366637,196.64,196.59,20.0]
[1735132521353,9.93873292,196.63,196.56,9.93873292]
[1735132521560,0.95373982,196.62,196.56,9.93873292]
[1735132523364,9.93873292,196.63,196.56,9.93873292]
[1735132523582,23.776884,196.64,196.56,9.93873292]
[1735132523767,0.95366846,196.63,196.56,9.93873292]
[1735132524762,0.9536769,196.64,196.56,9.93873292]
[1735132526462,0.95367993,196.65,196.59,20.0]
[1735132526678,2.48547993,196.67,196.6,9.93873292]
[1735132526877,1.5318,196.67,196.63,20.0]
[1735132527084,0.95349914,196.66,196.63,20.0]
[1735132527367,9.93873292,196.65,196.58,9.93873292]
[1735132527566,0.95365685,196.64,196.58,9.93873292]
[1735132527776,9.93873292,196.65,196.58,9.93873292]
[1735132528171,0.95357553,196.64,196.58,9.93873292]
[1735132528746,23.776884,196.66,196.58,9.93873292]
[1735132528946,24.73044803,196.66,196.58,9.93873292]
[1735132532645,1.5318,196.67,196.63,20.0]
[1735132533178,1.5318,196.67,196.66,20.0]
[1735132533471,1.5653,196.72,196.67,20.0]
[1735132533678,1.5653,196.72,196.69,20.0]
[1735132535170,1.5653,196.72,196.71,20.0]
[1735132536059,0.95304001,196.76,196.71,20.0]
[1735132537575,23.776884,196.73,196.68,20.0]
[1735132537788,24.73011381,196.73,196.66,9.93873292]
[1735132537959,9.93873292,196.72,196.64,9.93873292]
[1735132538158,0.95331375,196.71,196.64,9.93873292]
[1735132539281,0.95331375,196.71,196.67,20.0]
[1735132540176,10.89202263,196.72,196.67,20.0]
[1735132540383,23.776884,196.73,196.67,20.0]
[1735132540570,23.776884,196.75,196.68,9.93873292]
[1735132540765,10.89198676,196.76,196.68,9.93873292]
[1735132540966,10.89198676,196.76,196.71,20.0]
[1735132542186,23.776884,196.75,196.71,20.0]
[1735132542366,0.95315055,196.74,196.71,20.0]
[1735132542568,24.73003379,196.75,196.71,20.0]
[1735132544884,23.776884,196.75,196.71,20.0]
[1735132550484,0.95309993,196.76,196.71,20.0]
[1735132550687,1.5468,196.77,196.73,20.0]
[1735132550987,8.0323,196.82,196.74,9.93873292]
[1735132551192,0.95279915,196.81,196.74,9.93873292]
[1735132551891,0.95279914,196.81,196.74,9.93873292]
[1735132556213,23.776884,196.8,196.74,9.93873292]
[1735132557393,0.95279914,196.81,196.77,20.0]
[1735132557571,0.95279914,196.81,196.73,32.7071]
[1735132557572,9.93873292,196.86,196.81,20.0]
[1735132558797,0.95258968,196.85,196.81,20.0]
[1735132558976,23.776884,196.85,196.81,20.0]
[1735132560907,0.95258952,196.91,196.82,9.93873292]
[1735132561075,0.95258952,196.91,196.87,20.0]
[1735132561406,8.0323,196.92,196.87,20.0]
[1735132561697,8.98452432,196.92,196.87,20.0]
[1735132562080,2.45830945,196.96,196.87,20.0]
[1735132562280,9.93873292,196.95,196.89,20.0]
[1735132562484,9.93873292,196.95,196.88,9.93873292]
[1735132562987,2.45830945,196.96,196.91,20.0]
[1735132563186,1.506,196.96,196.91,20.0]
[1735132563783,6.5263,196.97,196.91,20.0]
[1735132563978,1.506,197.01,196.93,9.93873292]
[1735132564178,10.89070213,197.0,196.93,9.93873292]
[1735132564598,10.89070213,197.0,196.91,20.0]
[1735132564599,0.95192122,197.02,196.94,9.93873292]
[1735132564902,10.89065414,197.02,196.95,9.93873292]
[1735132566104,23.776884,197.01,196.95,9.93873292]
[1735132566305,0.95192122,197.02,196.95,9.93873292]
[1735132567192,9.93873292,197.02,196.95,9.93873292]
[1735132567387,0.9518432,197.01,196.95,9.93873292]
[1735132567599,0.9518432,197.01,196.93,20.0]
[1735132567779,0.9518432,197.01,196.93,29.93873292]
[1735132568601,0.9518432,197.01,196.95,9.93873292]
[1735132568905,33.71561692,197.0,196.93,29.93873292]
[1735132569101,0.95196751,196.99,196.93,29.93873292]
[1735132571201,33.71561692,196.98,196.88,20.0]
[1735132571385,23.776884,196.96,196.89,9.93873292]
[1735132571582,2.50608868,196.97,196.89,9.93873292]
[1735132572676,33.71561692,196.96,196.85,2.16939529]
[1735132572877,33.71561692,196.94,196.86,9.93873292]
[1735132573609,9.93873292,196.96,196.88,9.93873292]
[1735132573792,24.7290049,196.95,196.88,9.93873292]
[1735132580679,34.66773782,196.95,196.87,9.93873292]
[1735132580885,34.66773782,196.95,196.9,20.0]
[1735132582603,34.66773782,196.95,196.87,9.93873292]
[1735132582803,34.66773782,196.95,196.9,20.0]
[1735132583005,34.66773782,196.95,196.85,12.7006]
[1735132583200,23.776884,196.93,196.86,9.93873292]
[1735132583400,0.95229887,196.92,196.86,9.93873292]
[1735132587414,23.776884,196.92,196.86,9.93873292]
[1735132588013,0.95226408,196.93,196.86,9.93873292]
[1735132588201,23.776884,196.93,196.88,9.93873292]
[1735132588804,0.95220577,196.92,196.86,29.93873292]
[1735132589003,24.72915721,196.93,196.86,29.93873292]
[1735132591498,23.776884,196.91,196.86,20.0]
[1735132591698,23.776884,196.91,196.78,56.0085]
[1735132591699,23.776884,196.87,196.76,30.6]
[1735132592016,23.776884,196.85,196.79,9.93873292]
[1735132592403,6.6417,196.86,196.79,9.93873292]
[1735132592606,6.6417,196.86,196.81,9.93873292]
[1735132593000,1.5097,196.89,196.83,9.93873292]
[1735132593198,0.95240639,196.88,196.83,9.93873292]
[1735132594222,23.776884,196.87,196.83,9.93873292]
[1735132594518,23.776884,196.87,196.8,20.0]
[1735132594519,23.776884,196.85,196.8,20.0]
[1735132594755,23.776884,196.85,196.79,9.93873292]
[1735132594901,0.95264457,196.84,196.79,9.93873292]
[1735132595101,0.95264761,196.84,196.79,9.93873292]
[1735132595419,29.845784,196.83,196.76,9.93873292]
[1735132595727,10.89152749,196.82,196.75,9.93873292]
[1735132596815,0.95279457,196.82,196.75,9.93873292]
[1735132597615,23.776884,196.81,196.75,9.93873292]
[1735132597922,0.95289678,196.8,196.75,9.93873292]
[1735132598105,2.51699678,196.8,196.71,12.7069]
[1735132598298,2.51699678,196.8,196.73,9.93873292]
[1735132600332,1.5641,196.8,196.75,9.93873292]
[1735132600933,6.0689,196.83,196.77,9.93873292]
[1735132601735,6.0689,196.83,196.8,20.0]
[1735132602533,1.5641,196.85,196.82,20.0]
[1735132603412,1.50290727,196.85,196.82,20.0]
[1735132608139,6.0689,196.88,196.82,20.0]
[1735132609718,24.72937083,196.87,196.82,20.0]
[1735132611833,24.72937083,196.87,196.79,20.0]
[1735132612033,24.72937083,196.87,196.79,29.93873292]
[1735132614410,24.72937083,196.87,196.81,20.0]
[1735132614841,24.72937083,196.87,196.82,20.0]
[1735132615025,23.776884,196.87,196.82,20.0]
[1735132615234,24.72938067,196.87,196.82,20.0]
[1735132616242,6.0689,196.88,196.82,20.0]
[1735132616415,7.02138824,196.88,196.83,20.0]
[1735132617615,23.776884,196.87,196.83,20.0]
[1735132617815,7.02141546,196.88,196.83,20.0]
[1735132618441,6.0689,196.88,196.83,20.0]
[1735132618619,7.02138911,196.88,196.83,20.0]
[1735132618820,6.0689,196.88,196.83,20.0]
[1735132619122,2.51647564,196.9,196.85,20.0]
[1735132619719,1.5641,196.9,196.85,20.0]
[1735132620316,1.5641,196.9,196.87,20.0]
[1735132624548,1.5641,196.9,196.84,22.63933292]
[1735132624852,1.5641,196.9,196.87,20.0]
[1735132625927,0.95224519,196.92,196.87,20.0]
[1735132626229,16.33133292,196.93,196.87,20.0]
[1735132626545,16.33133292,196.93,196.86,9.93873292]
[1735132626546,1.5826,196.94,196.89,20.0]
[1735132627243,23.776884,196.92,196.83,12.7012]
[1735132627433,23.776884,196.9,196.83,29.93873292]
[1735132627746,0.95240712,196.89,196.83,29.93873292]
[1735132628046,23.776884,196.88,196.82,9.93873292]
[1735132628221,0.95253044,196.87,196.82,9.93873292]
[1735132628416,23.776884,196.86,196.77,20.62774843]
[1735132628645,10.89135628,196.85,196.77,9.93873292]
[1735132629317,10.89135628,196.85,196.78,9.93873292]
[1735132630022,0.95262336,196.85,196.78,9.93873292]
[1735132630437,1.5826,196.87,196.83,20.0]
[1735132630830,1.5826,196.87,196.85,20.0]
[1735132632748,23.776884,196.9,196.85,20.0]
[1735132633131,0.95235433,196.89,196.85,20.0]
[1735132633547,24.72933697,196.9,196.85,20.0]
[1735132635057,23.776884,196.88,196.82,9.93873292]
[1735132635241,0.95253355,196.88,196.82,9.93873292]
[1735132635441,23.776884,196.88,196.82,9.93873292]
[1735132636546,24.72933198,196.88,196.82,9.93873292]
[1735132637049,23.776884,196.88,196.82,9.93873292]
[1735132637349,9.93873292,196.91,196.82,9.93873292]
[1735132637546,23.776884,196.89,196.85,20.0]
[1735132638454,0.95237972,196.88,196.82,9.93873292]
[1735132639727,23.776884,196.89,196.82,9.93873292]
[1735132639931,24.72927463,196.9,196.82,9.93873292]
[1735132644659,9.93873292,196.89,196.8,12.7031]
[1735132644843,9.93873292,196.85,196.77,9.93873292]
[1735132645041,23.776884,196.84,196.77,9.93873292]
[1735132645444,0.95262481,196.91,196.79,9.93873292]
[1735132645650,23.776884,196.87,196.79,9.93873292]
[1735132645847,24.72941772,196.87,196.79,9.93873292]
[1735132646355,0.95253372,196.87,196.82,20.0]
[1735132646563,23.776884,196.88,196.82,20.0]
[1735132646747,0.95250403,196.87,196.82,20.0]
[1735132647354,23.776884,196.86,196.82,20.0]
[1735132647774,23.776884,196.84,196.76,12.7056]
[1735132647980,23.776884,196.82,196.75,9.93873292]
[1735132648162,0.9528185,196.81,196.75,9.93873292]
[1735132650359,23.776884,196.8,196.73,9.93873292]
[1735132650568,0.95291475,196.79,196.73,9.93873292]
[1735132651261,10.89164767,196.79,196.71,53.24733292]
[1735132651957,10.89164767,196.79,196.71,22.64733292]
[1735132655769,23.776884,196.78,196.71,9.93873292]
[1735132655966,10.89174362,196.77,196.71,20.0]
[1735132656167,7.8227,196.76,196.71,20.0]
[1735132656853,10.89180366,196.75,196.68,9.93873292]
[1735132657276,7.8227,196.76,196.7,9.93873292]
[1735132657472,23.776884,196.78,196.72,9.93873292]
[1735132657675,0.95291813,196.8,196.74,9.93873292]
[1735132657873,7.8227,196.81,196.76,9.93873292]
[1735132658758,1.6066,196.81,196.76,9.93873292]
[1735132659461,9.93873292,196.85,196.78,9.93873292]
[1735132659652,10.89137101,196.85,196.78,9.93873292]
[1735132660061,23.776884,196.84,196.78,9.93873292]
[1735132660575,24.72954648,196.84,196.78,9.93873292]
[1735132664169,9.93873292,196.85,196.78,9.93873292]
[1735132664473,0.95263181,196.85,196.78,9.93873292]
[1735132667273,23.776884,196.84,196.76,22.64453292]
[1735132667475,0.95272682,196.83,196.79,20.0]
[1735132671989,24.72958069,196.84,196.79,20.0]
[1735132672375,7.8227,196.86,196.8,9.93873292]
[1735132673379,7.8227,196.86,196.8,321.93873292]
[1735132673662,7.8227,196.86,196.83,20.0]
[1735132679069,24.72940806,196.85,196.78,12.704]
[1735132679276,23.776884,196.85,196.81,20.0]
[1735132679996,24.72947316,196.85,196.81,20.0]
[1735132682702,24.72947316,196.85,196.78,9.93873292]
[1735132682898,24.72947316,196.85,196.78,20.0]
[1735132682899,34.66820608,196.85,196.78,20.0]
[1735132683099,23.776884,196.8,196.72,12.7081]
[1735132683304,0.95292097,196.79,196.72,9.93873292]
[1735132683994,1.5641,196.78,196.72,9.93873292]
[1735132685304,2.51709743,196.78,196.73,20.0]
[1735132686098,1.5641,196.78,196.72,29.93873292]
[1735132688682,1.5641,196.78,196.74,29.93873292]
[1735132688878,6.5808,196.79,196.74,29.93873292]
[1735132689296,2.53467994,196.82,196.74,29.93873292]
[1735132689591,1.5819,196.82,196.76,29.93873292]
[1735132689789,1.5819,196.82,196.78,9.93873292]
[1735132691003,1.5819,196.82,196.77,20.0]
[1735132691820,1.5819,196.82,196.79,20.0]
[1735132701288,1.5819,196.82,196.76,9.93873292]
[1735132701689,9.93873292,196.81,196.74,9.93873292]
[1735132701885,9.93873292,196.79,196.72,12.7082]
[1735132704794,24.72966688,196.8,196.73,9.93873292]
[1735132706810,23.776884,196.78,196.72,20.0]
[1735132707011,17.37823943,196.77,196.67,0.76231969]
[1735132707201,25.404284,196.76,196.69,9.93873292]
[1735132708005,0.953046,196.75,196.69,9.93873292]
[1735132708214,26.35736611,196.76,196.72,20.0]
[1735132708904,26.35736611,196.76,196.69,9.93873292]
[1735132709218,9.93873292,196.75,196.67,9.93873292]
[1735132709411,0.95320021,196.74,196.67,9.93873292]
[1735132710212,0.95312331,196.73,196.67,9.93873292]
[1735132711309,0.95319026,196.74,196.67,9.93873292]
[1735132713220,23.776884,196.74,196.69,9.93873292]
[1735132713925,1.6274,196.76,196.71,9.93873292]
[1735132714216,1.6274,196.76,196.73,9.93873292]
[1735132714429,6.4865,196.77,196.73,9.93873292]
[1735132715624,6.4865,196.77,196.71,9.93873292]
[1735132715931,6.4865,196.77,196.74,20.0]
[1735132716424,6.4865,196.77,196.71,9.93873292]